fUST/lending_fUST_20250723
["ID","MTS","AMOUNT","RATE_DAILY","PERIOD"]
[374218171,1753247447872,-151.0,0.00022507,2]
[374218173,1753247447882,-1000.0,0.00022521,2]
[374218174,1753247447890,-377.62175577,0.00022521,2]
[374218176,1753247447900,-1000.0,0.00022521,2]
[374218178,1753247447909,-517.46250602,0.00022521,2]
[374218180,1753247447918,-1000.0,0.00022521,2]
[374218182,1753247447927,-500.0,0.00022542,2]
[374218184,1753247447937,-151.0,0.00022542,2]
[374218186,1753247447946,-1615.91207576,0.00022562,2]
[374218188,1753247447956,-500.0,0.00022584,2]
[374218190,1753247447966,-2690.86829388,0.00022624,7]
[374218192,1753247447977,-500.43,0.00022641,4]
[374218194,1753247447987,-460.0,0.00022644,2]
[374218196,1753247447996,-155.451601,0.00022723,2]
[374218198,1753247448005,-151.0,0.00022739,7]
[374218200,1753247448015,-2567.6,0.00022739,2]
[374218202,1753247448025,-931.43,0.00022739,2]
[374218205,1753247448034,-151.0,0.00022739,7]
[374218207,1753247448046,-460.0,0.00022739,2]
[374218208,1753247448056,-151.0,0.00022739,7]
[374218211,1753247448066,-460.0,0.00022739,2]
[374218213,1753247448075,-151.0,0.00022739,7]
[374218214,1753247448084,-151.0,0.00022739,7]
[374218216,1753247448093,-1259.6,0.00022739,2]
[374218218,1753247448103,-151.0,0.00022739,7]
[374218220,1753247448113,-460.0,0.00022739,2]
[374218222,1753247448122,-1816.41,0.00022739,2]
[374218224,1753247448132,-460.0,0.00022739,2]
[374218226,1753247448142,-1464.1,0.00022739,2]
[374218228,1753247448151,-460.0,0.00022739,2]
[374218230,1753247448160,-1524.6,0.00022739,2]
[374218232,1753247448170,-460.0,0.00022739,2]
[374218234,1753247448180,-460.0,0.00022739,2]
[374218236,1753247448189,-460.0,0.00022739,2]
[374218238,1753247448205,-460.0,0.00022739,2]
[374218240,1753247448215,-482.04,0.00022739,2]
[374218242,1753247448224,-487.81,0.00022739,2]
[374218243,1753247448233,-1754.46,0.00022739,2]
[374218245,1753247448245,-460.0,0.00022739,2]
[374218247,1753247448255,-460.0,0.00022739,2]
[374218249,1753247448265,-460.0,0.00022739,2]
[374218251,1753247448275,-460.0,0.00022739,2]
[374218253,1753247448289,-2005.43,0.00022739,2]
[374218255,1753247448301,-208.94,0.00022739,2]
[374218257,1753247448312,-1195.6,0.00022739,2]
[374218259,1753247448323,-460.0,0.00022739,2]
[374218261,1753247448335,-460.0,0.00022739,2]
[374218263,1753247448348,-3465.14,0.00022739,2]
[374218265,1753247448358,-1211.64,0.00022739,2]
[374218267,1753247448369,-460.0,0.00022739,2]
[374218269,1753247448379,-460.0,0.00022739,2]
[374218271,1753247448389,-460.0,0.00022739,2]
[374218273,1753247448399,-460.0,0.00022739,2]
[374218275,1753247448408,-460.0,0.00022739,2]
[374218277,1753247448418,-991.18,0.00022739,2]
[374218278,1753247448429,-460.0,0.00022739,2]
[374218280,1753247448439,-460.0,0.00022739,2]
[374218282,1753247448450,-460.0,0.00022739,2]
[374218284,1753247448460,-1324.16,0.00022739,2]
[374218286,1753247448470,-1186.61,0.00022739,2]
[374218288,1753247448479,-460.0,0.00022739,2]
[374218290,1753247448489,-471.74,0.00022739,2]
[374218292,1753247448498,-460.0,0.00022739,2]
[374218294,1753247448508,-460.0,0.00022739,2]
[374218296,1753247448518,-460.0,0.00022739,2]
[374218298,1753247448527,-460.0,0.00022739,2]
[374218300,1753247448537,-262.43591573,0.00022739,2]
[374218302,1753247448547,-460.0,0.00022739,2]
[374218304,1753247448559,-460.0,0.00022739,2]
[374218306,1753247448569,-460.0,0.00022739,2]
[374218308,1753247448581,-217.89,0.00022739,2]
[374218310,1753247448590,-500.43,0.00022741,7]
[374218312,1753247448600,-2690.86829388,0.00022797,7]
[374218314,1753247448609,-500.0,0.00022816,2]
[374218316,1753247448619,-247.92601288,0.00022816,2]
[374218318,1753247448629,-501.27535184,0.00022833,2]
[374218320,1753247448638,-500.0,0.00022833,2]
[374218322,1753247448647,-500.0,0.00022833,2]
[374218324,1753247448657,-501.10055354,0.00022833,2]
[374218325,1753247448666,-500.43,0.00022841,5]
[374218327,1753247448676,-500.0,0.00022858,2]
[374218329,1753247448686,-500.43,0.00022941,7]
[374218331,1753247448695,-2690.86829388,0.00022969,8]
[374218343,1753247448802,-151.621884,0.0002299,7]
[374218345,1753247448812,-151.0,0.0002299,7]
[374218347,1753247448822,-151.0,0.0002299,7]
[374218349,1753247448833,-160.0,0.00023,3]
[374218351,1753247448843,-231.11583447,0.00023,3]
[374218353,1753247448852,-160.0,0.00023,3]
[374218355,1753247448861,-160.0,0.00023,3]
[374218357,1753247448870,-215.84326551,0.00023,3]
[374218359,1753247448879,-840.06856235,0.00023,3]
[374218361,1753247448889,-526.15909479,0.00023,3]
[374218363,1753247448898,-269.829857,0.00023013,7]
[374218365,1753247448908,-2567.6,0.00023013,2]
[374218367,1753247448918,-931.43,0.00023013,2]
[374218369,1753247448927,-460.0,0.00023013,2]
[374218371,1753247448937,-460.0,0.00023013,2]
[374218373,1753247448946,-1259.6,0.00023013,2]
[374218375,1753247448955,-460.0,0.00023013,2]
[374218377,1753247448964,-1816.41,0.00023013,2]
[374218379,1753247448975,-460.0,0.00023013,2]
[374218381,1753247448985,-1464.1,0.00023013,2]
[374218383,1753247448994,-1524.6,0.00023013,2]
[374218385,1753247449003,-460.0,0.00023013,2]
[374218387,1753247449013,-460.0,0.00023013,2]
[374218389,1753247449023,-460.0,0.00023013,2]
[374218390,1753247449032,-161.714922,0.00023013,7]
[374218392,1753247449043,-487.81,0.00023013,2]
[374218395,1753247449053,-1754.46,0.00023013,2]
[374218397,1753247449062,-460.0,0.00023013,2]
[374218398,1753247449072,-460.0,0.00023013,2]
[374218400,1753247449084,-460.0,0.00023013,2]
[374218402,1753247449093,-460.0,0.00023013,2]
[374218404,1753247449103,-2005.43,0.00023013,2]
[374218406,1753247449112,-1195.6,0.00023013,2]
[374218408,1753247449121,-592.22,0.00023013,2]
[374218410,1753247449130,-460.0,0.00023013,2]
[374218412,1753247449139,-3465.14,0.00023013,2]
[374218414,1753247449149,-1211.64,0.00023013,2]
[374218416,1753247449158,-460.0,0.00023013,2]
[374218418,1753247449167,-460.0,0.00023013,2]
[374218420,1753247449177,-460.0,0.00023013,2]
[374218422,1753247449186,-460.0,0.00023013,2]
[374218424,1753247449196,-460.0,0.00023013,2]
[374218426,1753247449209,-991.18,0.00023013,2]
[374218428,1753247449218,-405.47,0.00023013,2]
[374218430,1753247449228,-460.0,0.00023013,2]
[374218432,1753247449237,-460.0,0.00023013,2]
[374218434,1753247449246,-1324.16,0.00023013,2]
[374218435,1753247449256,-151.0,0.00023013,7]
[374218437,1753247449265,-1186.61,0.00023013,2]
[374218439,1753247449274,-460.0,0.00023013,2]
[374218441,1753247449283,-151.0,0.00023013,7]
[374218443,1753247449292,-471.74,0.00023013,2]
[374218445,1753247449302,-460.0,0.00023013,2]
[374218447,1753247449312,-248.8739,0.00023013,7]
[374218449,1753247449321,-460.0,0.00023013,2]
[374218451,1753247449333,-460.0,0.00023013,2]
[374218453,1753247449342,-460.0,0.00023013,2]
[374218455,1753247449351,-537.80746666,0.00023013,2]
[374218457,1753247449360,-151.0,0.00023013,7]
[374218459,1753247449370,-151.0,0.00023013,7]
[374218461,1753247449381,-1000.0,0.00023021,2]
[374218463,1753247449390,-976.98973134,0.00023021,2]
[374218465,1753247449400,-1000.0,0.00023021,2]
[374218467,1753247449410,-500.43,0.00023041,2]
[374218469,1753247449419,-1500.0,0.00023068,2]
[374218471,1753247449429,-1500.0,0.00023068,2]
[374218473,1753247449438,-1008.39549157,0.00023068,2]
[374218475,1753247449448,-4284.44917854,0.0002307,2]
[374218477,1753247449457,-372.82,0.0002308,3]
[374218479,1753247449467,-160.0,0.00023082,3]
[374218481,1753247449476,-500.0,0.0002309,2]
[374218483,1753247449486,-151.0,0.00023108,7]
[374218484,1753247449495,-151.0,0.00023108,7]
[374218486,1753247449504,-236.210152,0.00023108,7]
[374218488,1753247449514,-500.0,0.00023132,2]
[374218490,1753247449524,-500.43,0.00023141,4]
[374218492,1753247449534,-2690.86829388,0.00023141,8]
[374218494,1753247449543,-176.545392,0.00023157,7]
[374218496,1753247449552,-151.0,0.00023157,7]
[374218498,1753247449562,-151.0,0.00023157,7]
[374218500,1753247449571,-151.0,0.00023157,7]
[374218502,1753247449582,-2157.0,0.00023171,2]
[374218504,1753247449591,-560.0,0.00023192,2]
[374218506,1753247449601,-971.991,0.00023204,2]
[374218508,1753247449610,-428.1187384,0.00023233,2]
[374218510,1753247449619,-500.43,0.00023241,7]
[374218512,1753247449628,-859.2850931,0.0002326,2]
[374218514,1753247449638,-859.2850931,0.0002326,2]
[374218516,1753247449647,-429.674968,0.0002326,2]
[374218518,1753247449656,-429.674968,0.0002326,2]
[374218520,1753247449665,-151.0,0.00023287,7]
[374218522,1753247449675,-2567.6,0.00023287,2]
[374218524,1753247449684,-931.43,0.00023287,2]
[374218526,1753247449694,-460.0,0.00023287,2]
[374218528,1753247449703,-460.0,0.00023287,2]
[374218530,1753247449712,-1259.6,0.00023287,2]
[374218532,1753247449721,-460.0,0.00023287,2]
[374218534,1753247449730,-1816.41,0.00023287,2]
[374218536,1753247449740,-460.0,0.00023287,2]
[374218538,1753247449749,-1464.1,0.00023287,2]
[374218540,1753247449758,-1524.6,0.00023287,2]
[374218541,1753247449767,-460.0,0.00023287,2]
[374218543,1753247449780,-460.0,0.00023287,2]
[374218545,1753247449790,-460.0,0.00023287,2]
[374218547,1753247449799,-487.81,0.00023287,2]
[374218550,1753247449809,-1754.46,0.00023287,2]
[374218551,1753247449819,-460.0,0.00023287,2]
[374218553,1753247449829,-460.0,0.00023287,2]
[374218555,1753247449838,-460.0,0.00023287,2]
[374218557,1753247449847,-460.0,0.00023287,2]
[374218559,1753247449856,-2005.43,0.00023287,2]
[374218561,1753247449865,-1195.6,0.00023287,2]
[374218563,1753247449875,-460.0,0.00023287,2]
[374218565,1753247449884,-3465.14,0.00023287,2]
[374218567,1753247449893,-1211.64,0.00023287,2]
[374218569,1753247449902,-460.0,0.00023287,2]
[374218571,1753247449911,-460.0,0.00023287,2]
[374218573,1753247449920,-460.0,0.00023287,2]
[374218575,1753247449930,-460.0,0.00023287,2]
[374218577,1753247449939,-991.18,0.00023287,2]
[374218579,1753247449948,-460.0,0.00023287,2]
[374218581,1753247449959,-460.0,0.00023287,2]
[374218583,1753247449968,-1324.16,0.00023287,2]
[374218585,1753247449977,-1186.61,0.00023287,2]
[374218587,1753247449988,-460.0,0.00023287,2]
[374218589,1753247450008,-471.74,0.00023287,2]
[374218591,1753247450019,-460.0,0.00023287,2]
[374218593,1753247450028,-460.0,0.00023287,2]
[374218595,1753247450038,-460.0,0.00023287,2]
[374218597,1753247450049,-460.0,0.00023287,2]
[374218599,1753247450057,-2690.86829388,0.00023314,9]
[374218601,1753247450067,-500.43,0.00023341,6]
[374218602,1753247450078,-500.0,0.00023364,2]
[374218604,1753247450087,-2028.11,0.00023374,2]
[374218606,1753247450097,-1000.0,0.00023381,2]
[374218608,1753247450106,-1000.0,0.00023381,2]
[374218610,1753247450115,-12175.09,0.000234,2]
[374218612,1753247450124,-7364.5,0.000234,7]
[374218614,1753247450133,-500.0,0.00023406,2]
[374218616,1753247450142,-500.43,0.00023441,2]
[374218618,1753247450152,-2690.86829388,0.00023486,9]
[374218620,1753247450161,-155.451601,0.00023529,2]
[374218622,1753247450170,-155.451601,0.00023529,2]
[374218624,1753247450179,-150.62458264,0.00023538,2]
[374218626,1753247450188,-500.43,0.00023541,2]
[374218628,1753247450201,-151.0,0.00023561,7]
[374218630,1753247450210,-151.0,0.00023561,7]
[374218632,1753247450219,-2567.6,0.00023561,2]
[374218634,1753247450229,-931.43,0.00023561,2]
[374218636,1753247450238,-460.0,0.00023561,2]
[374218638,1753247450248,-1259.6,0.00023561,2]
[374218640,1753247450257,-460.0,0.00023561,2]
[374218642,1753247450267,-1816.41,0.00023561,2]
[374218644,1753247450276,-460.0,0.00023561,2]
[374218646,1753247450287,-1464.1,0.00023561,2]
[374218648,1753247450296,-1524.6,0.00023561,2]
[374218650,1753247450305,-535.16,0.00023561,2]
[374218651,1753247450314,-460.0,0.00023561,2]
[374218653,1753247450323,-252.63429499,0.00023561,2]
[374218655,1753247450333,-487.81,0.00023561,2]
[374218657,1753247450342,-1754.46,0.00023561,2]
[374218659,1753247450351,-460.0,0.00023561,2]
[374218661,1753247450360,-460.0,0.00023561,2]
[374218663,1753247450370,-460.0,0.00023561,2]
[374218665,1753247450379,-460.0,0.00023561,2]
[374218667,1753247450388,-2005.43,0.00023561,2]
[374218669,1753247450397,-1195.6,0.00023561,2]
[374218671,1753247450407,-460.0,0.00023561,2]
[374218673,1753247450416,-3465.14,0.00023561,2]
[374218675,1753247450425,-1211.64,0.00023561,2]
[374218676,1753247450434,-460.0,0.00023561,2]
[374218678,1753247450443,-460.0,0.00023561,2]
[374218679,1753247450453,-460.0,0.00023561,2]
[374218680,1753247450462,-991.18,0.00023561,2]
[374218681,1753247450471,-460.0,0.00023561,2]
[374218682,1753247450481,-460.0,0.00023561,2]
[374218683,1753247450491,-1324.16,0.00023561,2]
[374218684,1753247450500,-151.0,0.00023561,7]
[374218685,1753247450509,-1186.61,0.00023561,2]
[374218686,1753247450519,-460.0,0.00023561,2]
[374218687,1753247450528,-299.487688,0.00023561,7]
[374218688,1753247450537,-471.74,0.00023561,2]
[374218689,1753247450546,-460.0,0.00023561,2]
[374218690,1753247450555,-460.0,0.00023561,2]
[374218691,1753247450565,-460.0,0.00023561,2]
[374218692,1753247450574,-460.0,0.00023561,2]
[374218693,1753247450584,-151.0,0.00023561,7]
[374218694,1753247450597,-151.0,0.00023561,7]
[374218695,1753247450607,-1231.27315472,0.00023568,2]
[374218696,1753247450616,-299.77258459,0.00023568,2]
[374218697,1753247450625,-160.0,0.00023596,4]
[374218698,1753247450635,-166.88019964,0.00023616,2]
[374218699,1753247450644,-155.754853,0.00023616,2]
[374218700,1753247450653,-155.75485299,0.00023616,2]
[374218701,1753247450662,-508.49459655,0.00023616,2]
[374218702,1753247450671,-1891.41905948,0.00023616,2]
[374218703,1753247450680,-412.78960921,0.00023638,2]
[374218704,1753247450690,-500.43,0.00023641,5]
[374218705,1753247450698,-243.0,0.00023654,2]
[374218707,1753247450707,-2690.86829388,0.00023659,9]
[374218709,1753247450717,-220.464073,0.00023659,7]
[374218711,1753247450726,-151.0,0.00023659,7]
[374218713,1753247450735,-168.0,0.00023668,2]
[374218715,1753247450745,-500.0,0.0002368,2]
[374218717,1753247450754,-151.0,0.000237,5]
[374218719,1753247450763,-660.0,0.0002374,2]
[374218721,1753247450773,-500.43,0.00023741,5]
[374218723,1753247450783,-151.0,0.00023745,7]
[374218725,1753247450791,-561.16435162,0.00023786,2]
[374218727,1753247450801,-675.01,0.000238,7]
[374218729,1753247450810,-300.258,0.00023808,2]
[374218731,1753247450819,-305.75740649,0.00023811,2]
[374218733,1753247450829,-152.87870324,0.00023811,2]
[374218735,1753247450838,-611.51481301,0.00023814,2]
[374218736,1753247450847,-2690.86829388,0.00023831,10]
[374218738,1753247450856,-151.0,0.00023835,2]
[374218740,1753247450865,-151.0,0.00023835,2]
[374218742,1753247450874,-151.0,0.00023835,2]
[374218744,1753247450883,-154.821186,0.00023835,7]
[374218746,1753247450893,-2567.6,0.00023835,2]
[374218748,1753247450902,-931.43,0.00023835,2]
[374218750,1753247450911,-460.0,0.00023835,2]
[374218761,1753247450920,-1259.6,0.00023835,2]
[374218763,1753247451008,-460.0,0.00023835,2]
[374218765,1753247451017,-1816.41,0.00023835,2]
[374218767,1753247451026,-460.0,0.00023835,2]
[374218769,1753247451036,-1464.1,0.00023835,2]
[374218771,1753247451045,-1524.6,0.00023835,2]
[374218773,1753247451055,-460.0,0.00023835,2]
[374218775,1753247451066,-487.81,0.00023835,2]
[374218777,1753247451076,-1754.46,0.00023835,2]
[374218779,1753247451086,-228.42,0.00023835,2]
[374218781,1753247451095,-460.0,0.00023835,2]
[374218783,1753247451105,-460.0,0.00023835,2]
[374218785,1753247451114,-460.0,0.00023835,2]
[374218787,1753247451123,-2005.43,0.00023835,2]
[374218789,1753247451132,-1195.6,0.00023835,2]
[374218791,1753247451141,-460.0,0.00023835,2]
[374218793,1753247451150,-3465.14,0.00023835,2]
[374218795,1753247451159,-1211.64,0.00023835,2]
[374218797,1753247451169,-460.0,0.00023835,2]
[374218799,1753247451178,-460.0,0.00023835,2]
[374218801,1753247451187,-460.0,0.00023835,2]
[374218803,1753247451199,-991.18,0.00023835,2]
[374218805,1753247451209,-460.0,0.00023835,2]
[374218807,1753247451219,-1324.16,0.00023835,2]
[374218809,1753247451231,-1186.61,0.00023835,2]
[374218811,1753247451241,-460.0,0.00023835,2]
[374218813,1753247451250,-471.74,0.00023835,2]
[374218815,1753247451259,-460.0,0.00023835,2]
[374218817,1753247451267,-460.0,0.00023835,2]
[374218819,1753247451277,-460.0,0.00023835,2]
[374218821,1753247451286,-460.0,0.00023835,2]
[374218823,1753247451295,-324.45059861,0.00023835,2]
[374218825,1753247451304,-166.88019964,0.00023836,2]
[374218827,1753247451314,-500.43,0.00023841,3]
[374218829,1753247451323,-223.0315306,0.00023876,2]
[374218831,1753247451333,-561.16435162,0.00023886,2]
[374218833,1753247451342,-1751.99000458,0.000239,2]
[374218835,1753247451351,-500.0,0.00023909,2]
[374218837,1753247451360,-555.0,0.00023929,2]
[374218839,1753247451370,-500.43,0.00023941,6]
[374218841,1753247451379,-194.69356626,0.00023945,2]
[374218843,1753247451388,-155.754853,0.00023945,2]
[374218845,1753247451397,-155.75485299,0.00023945,2]
[374218847,1753247451407,-500.0,0.00023954,2]
[374218849,1753247451417,-153.0,0.00023961,2]
[374218851,1753247451426,-153.0,0.00023961,2]
[374218853,1753247451436,-153.0,0.00023961,2]
[374218855,1753247451446,-153.0,0.00023961,2]
[374218857,1753247451455,-153.0,0.00023961,2]
[374218859,1753247451464,-153.0,0.00023961,2]
[374218861,1753247451473,-153.0,0.00023961,2]
[374218863,1753247451483,-153.0,0.00023961,2]
[374218865,1753247451492,-153.0,0.00023961,2]
[374218867,1753247451501,-153.0,0.00023961,2]
[374218869,1753247451511,-153.0,0.00023961,2]
[374218871,1753247451520,-153.0,0.00023961,2]
[374218873,1753247451529,-153.0,0.00023964,2]
[374218875,1753247451538,-153.0,0.00023964,2]
[374218877,1753247451548,-153.0,0.00023964,2]
[374218879,1753247451558,-153.0,0.00023964,2]
[374218881,1753247451567,-153.0,0.00023964,2]
[374218883,1753247451577,-153.0,0.00023965,2]
[374218885,1753247451587,-153.0,0.00023965,2]
[374218887,1753247451596,-153.0,0.00023965,2]
[374218889,1753247451606,-747.96975,0.00024,30]
[374218891,1753247451615,-160.0,0.00024,7]
[374218893,1753247451625,-204.03205314,0.00024,14]
[374218895,1753247451635,-840.06856235,0.00024,7]
[374218897,1753247451644,-526.15909479,0.00024,7]
[374218899,1753247451653,-526.15909479,0.00024,7]
[374218901,1753247451662,-642.0,0.00024,2]
[374218903,1753247451671,-2690.86829388,0.00024003,10]
[374218905,1753247451680,-198.08271,0.00024005,8]
[374218907,1753247451690,-506.80993914,0.00024027,30]
[374218909,1753247451699,-500.43,0.00024041,6]
[374218911,1753247451708,-166.88019964,0.00024055,2]
[374218913,1753247451717,-150.375,0.0002406,2]
[374218915,1753247451727,-224.39,0.0002406,2]
[374218917,1753247451735,-649.677,0.0002406,2]
[374218919,1753247451745,-252.79307641,0.00024109,2]
[374218921,1753247451754,-151.0,0.00024109,2]
[374218923,1753247451763,-151.0,0.00024109,2]
[374218925,1753247451772,-2567.6,0.00024109,2]
[374218927,1753247451781,-931.43,0.00024109,2]
[374218929,1753247451790,-260.37,0.00024109,2]
[374218931,1753247451799,-1259.6,0.00024109,2]
[374218933,1753247451808,-460.0,0.00024109,2]
[374218934,1753247451817,-1138.34618103,0.00024109,2]
[374218945,1753247451905,-1243.71480431,0.00022191,2]
[374218947,1753247451916,-485.15639243,0.00022191,2]
[374218967,1753247452102,-500.0,0.00019379,2]
[374218969,1753247452111,-500.0,0.00019379,2]
[374218971,1753247452121,-500.0,0.00019379,2]
[374218973,1753247452130,-500.0,0.00019379,2]
[374218976,1753247452140,-500.0,0.00019379,2]
[374218977,1753247452149,-500.0,0.00019379,2]
[374218979,1753247452158,-500.0,0.00019379,2]
[374218981,1753247452168,-500.0,0.00019379,2]
[374218984,1753247452177,-500.0,0.00019379,2]
[374218985,1753247452186,-500.0,0.00019379,2]
[374218987,1753247452196,-500.0,0.00019379,2]
[374218989,1753247452208,-500.0,0.00019379,2]
[374218991,1753247452218,-453.01797607,0.00019379,2]
[374218993,1753247452227,-583.1973292,0.00019379,2]
[374218995,1753247452236,-98.2997438,0.00019379,2]
[374219071,1753247453007,-401.7002562,0.00019379,2]
[374219072,1753247453017,-500.0,0.00019379,2]
[374219074,1753247453026,-453.14964898,0.00019379,2]
[374219076,1753247453035,-500.0,0.00019379,2]
[374219078,1753247453044,-500.0,0.00019379,2]
[374219080,1753247453053,-500.0,0.00019379,2]
[374219082,1753247453063,-157.11889753,0.00019379,2]
[374219084,1753247453072,-500.0,0.00019379,2]
[374219086,1753247453081,-500.0,0.00019379,2]
[374219088,1753247453090,-500.0,0.00019379,2]
[374219090,1753247453099,-203.32044787,0.00019379,2]
[374219092,1753247453108,-500.0,0.00019379,2]
[374219094,1753247453117,-562.4811961,0.00019379,2]
[374219096,1753247453126,-500.0,0.00019379,2]
[374219098,1753247453135,-500.0,0.00019379,2]
[374219100,1753247453145,-471.04613427,0.00019379,2]
[374219102,1753247453154,-840.06856235,0.00021745,2]
[374219104,1753247453163,-160.0,0.00021745,2]
[374219106,1753247453173,-526.15909479,0.00021745,2]
[374219108,1753247453181,-151.0,0.00021917,2]
[374219110,1753247453191,-460.0,0.00021917,2]
[374219112,1753247453202,-460.0,0.00021917,2]
[374219114,1753247453211,-460.0,0.00021917,2]
[374219116,1753247453220,-151.0,0.00021917,2]
[374219118,1753247453230,-461.55880326,0.00022191,2]
[374219120,1753247453240,-460.0,0.00022191,2]
[374219122,1753247453249,-460.0,0.00022191,2]
[374219124,1753247453258,-460.0,0.00022191,2]
[374219126,1753247453267,-2190.43,0.00022465,2]
[374219128,1753247453277,-468.87210712,0.00022465,2]
[374219130,1753247453287,-460.0,0.00022739,2]
[374219132,1753247453296,-2190.43,0.00022739,2]
[374219134,1753247453310,-2190.43,0.00023013,2]
[374219137,1753247453320,-460.0,0.00023013,2]
[374219139,1753247453329,-2190.43,0.00023287,2]
[374219141,1753247453339,-498.43757029,0.00023287,2]
[374219142,1753247453349,-2190.43,0.00023561,2]
[374219145,1753247453358,-2190.43,0.00023835,2]
[374219147,1753247453368,-678.06381897,0.00024109,2]
[374219149,1753247453377,-460.0,0.00024109,2]
[374219151,1753247453386,-306.53008067,0.00024109,2]
[374219153,1753247453399,-1157.56991933,0.00024109,2]
[374219155,1753247453408,-1524.6,0.00024109,2]
[374219157,1753247453417,-321.38,0.00024109,2]
[374219159,1753247453427,-487.81,0.00024109,2]
[374219161,1753247453436,-1754.46,0.00024109,2]
[374219163,1753247453447,-460.0,0.00024109,2]
[374219165,1753247453456,-460.0,0.00024109,2]
[374219167,1753247453465,-460.0,0.00024109,2]
[374219169,1753247453474,-2005.43,0.00024109,2]
[374219171,1753247453483,-1195.6,0.00024109,2]
[374219173,1753247453493,-460.0,0.00024109,2]
[374219175,1753247453502,-2339.17027312,0.00024109,2]
[374225484,1753247561003,150.0,0.00015711,2]
[374225486,1753247719840,150.0,0.00016653,2]
[374225487,1753247803721,150.0,0.0001582,2]
[374225489,1753247892081,416.674078,0.00013699,2]
[374225490,1753248207374,150.0,0.00016322,2]
[374225492,1753248290720,150.0,0.0001631,2]
[374225493,1753248374448,150.0,0.00016112,2]
[374225499,1753248619222,151.72,0.00016626,2]
[374225512,1753248632441,-265.14865309,0.00018138,2]
[374225514,1753248632497,-38.28134691,0.00018138,2]
[374225516,1753248632507,-160.0,0.00018304,2]
[374225518,1753248632516,-1167.99333638,0.000189,2]
[374225521,1753248632526,-190.871614,0.00019331,2]
[374225523,1753248632535,-85.0632352,0.00019452,2]
[374225525,1753248632547,-214.9367648,0.00019452,2]
[374225527,1753248632557,-196.0,0.00019452,2]
[374225529,1753248632567,-1200.0,0.00019452,2]
[374225530,1753248632576,-24900.0,0.00019453,2]
[374225532,1753248632585,-455.15,0.00019649,2]
[374225534,1753248632595,-320.4904234,0.0002,2]
[374225535,1753248632604,-666.0,0.00020037,2]
[374225537,1753248632613,-9326.43770726,0.00020038,2]
[374225539,1753248632626,-255.57243791,0.00020038,2]
[374225543,1753248632637,-40417.98985483,0.00020038,2]
[374225547,1753248632647,-416.674078,0.00020187,2]
[374225550,1753248632656,-370.9975937,0.00020873,2]
[374225552,1753248632666,-500.0,0.00020899,2]
[374225554,1753248632675,-407.11964367,0.00020899,2]
[374225555,1753248632685,-500.0,0.00020899,2]
[374225556,1753248632695,-366.82060993,0.00020899,2]
[374225557,1753248632705,-193.2431822,0.00020899,2]
[374225558,1753248632718,-184.12432195,0.00020899,2]
[374225559,1753248632730,-500.0,0.00020899,2]
[374225560,1753248632740,-500.0,0.00020899,2]
[374225561,1753248632749,-500.0,0.00020899,2]
[374225562,1753248632759,-517.19840758,0.00020899,2]
[374225563,1753248632770,-500.0,0.00020899,2]